{"text_format":"1","workbook":"xlsx","n_sheets":5,"sheets":["menu","impressao","dados","lista_geral","conf"],"not_rendered":{"charts":0,"images":1,"macros":1,"external_links":0,"defined_names":6,"comments":0,"pivot_tables":0},"unopened":[],"bounds":{"document_bytes":16777216,"sheet_cells":100000,"rows_first":2000,"rows_last":500,"rows_between":2000,"halvings":0,"cell_chars":16384,"cell_head_chars":4096},"cells_cut":0,"cells_raw":0,"read":"whole","date_system":"1900"}

{"sheet":"menu","index":0,"n_rows":4,"n_cols":1,"rows_kept":4,"cut":false,"hidden":false,"merged":[]}
[]
[]
["Para o funcionamento do formulário é necessario habilitar edição"]
["Para o funcionamento do formulário é necessario habilitar conteúdo"]

{"sheet":"impressao","index":1,"n_rows":89,"n_cols":5,"rows_kept":89,"cut":false,"hidden":false,"merged":[[87,0,87,5],[84,0,84,5],[88,0,88,5],[6,0,6,5],[37,0,37,5],[81,0,81,5]]}
[]
[]
[]
[]
[]
[]
["FORMULÁRIO DE INSCRIÇÃO – ANEXO 01\nEdital de Convocação para composição dos Grupos Temáticos de Assessoramento Técnico \nMICROPROJETO CULTURAL 2020"]
[]
["DADOS PESSOAIS",null,null,null,{"$f":"dados!T2","v":0}]
[]
["Nome Completo:",null,null,null,"CPF:"]
[{"$f":"dados!A2","v":0},null,null,null,{"$f":"dados!C2","v":0}]
[]
["Data de Nascimento:",null,"RG:",null,"Órgão Expedidor/UF:"]
[{"$f":"dados!B2","v":0},null,{"$f":"dados!D2","v":0},null,{"$f":"dados!E2","v":0}]
[]
["Identidade de gênero",null,"Transgênero?",null,"Raça,Cor,Etnia"]
[{"$f":"dados!P2","v":0},null,{"$f":"dados!Q2","v":0},null,{"$f":"dados!R2","v":0}]
[]
["e-mail:",null,"Telefones 1",null,"Telefones 2"]
[{"$f":"dados!O2","v":0},null,{"$f":"dados!M2","v":0},null,{"$f":"IF(dados!N2=\"\",\" \",dados!N2)","v":" "}]
[]
["ENDEREÇO"]
[]
["Endereço:",null,"Nº:",null,"CEP:"]
[{"$f":"dados!F2","v":0},null,{"$f":"dados!H2","v":0},null,{"$f":"dados!G2","v":0}]
[]
["Bairro",null,"Cidade",null,"Estado"]
[{"$f":"dados!J2","v":0},null,{"$f":"dados!K2","v":0},null,{"$f":"dados!L2","v":0}]
[]
["Complemento"]
[{"$f":"dados!I2","v":0}]
[]
["CURRÍCULO"]
[]
["Currículo resumido:"]
[]
[{"$f":"dados!S2","v":0}]
[]
["NOMES DAS COMPROVAÇÕES CURRÍCULARES"]
[]
["Formação"]
[]
["Titulação",null,"Nome do arquivo"]
[]
[{"$f":"IF(dados!U2=\"\",\" \",dados!U2)","v":" "},null,{"$f":"IF(dados!V2=\"\",\" \",dados!V2)","v":" "}]
[{"$f":"IF(dados!U3=\"\",\" \",dados!U3)","v":" "},null,{"$f":"IF(dados!V3=\"\",\" \",dados!V3)","v":" "}]
[{"$f":"IF(dados!U4=\"\",\" \",dados!U4)","v":" "},null,{"$f":"IF(dados!V4=\"\",\" \",dados!V4)","v":" "}]
[{"$f":"IF(dados!U5=\"\",\" \",dados!U5)","v":" "},null,{"$f":"IF(dados!V5=\"\",\" \",dados!V5)","v":" "}]
[{"$f":"IF(dados!U6=\"\",\" \",dados!U6)","v":" "},null,{"$f":"IF(dados!V6=\"\",\" \",dados!V6)","v":" "}]
[{"$f":"IF(dados!U7=\"\",\" \",dados!U7)","v":" "},null,{"$f":"IF(dados!V7=\"\",\" \",dados!V7)","v":" "}]
[{"$f":"IF(dados!U8=\"\",\" \",dados!U8)","v":" "},null,{"$f":"IF(dados!V8=\"\",\" \",dados!V8)","v":" "}]
[{"$f":"IF(dados!U9=\"\",\" \",dados!U9)","v":" "},null,{"$f":"IF(dados!V9=\"\",\" \",dados!V9)","v":" "}]
[{"$f":"IF(dados!U10=\"\",\" \",dados!U10)","v":" "},null,{"$f":"IF(dados!V10=\"\",\" \",dados!V10)","v":" "}]
[{"$f":"IF(dados!U11=\"\",\" \",dados!U11)","v":" "},null,{"$f":"IF(dados!V11=\"\",\" \",dados!V11)","v":" "}]
[{"$f":"IF(dados!U12=\"\",\" \",dados!U12)","v":" "},null,{"$f":"IF(dados!V12=\"\",\" \",dados!V12)","v":" "}]
[]
["Experiência Profissional (nos últimos 10 anos)"]
[]
["a) Experiência profissional nas áreas relacionadas no item 2.1. desta convocatória.",null,null,null,"b) Experiência de atuação nas áreas: juventude, periferias urbanas e rurais e em áreas de vulnerabilidade social."]
[{"$f":"IF(dados!W2=\"\",\" \",dados!W2)","v":" "},null,null,null,{"$f":"IF(dados!X2=\"\",\" \",dados!X2)","v":" "}]
[{"$f":"IF(dados!W3=\"\",\" \",dados!W3)","v":" "},null,null,null,{"$f":"IF(dados!X3=\"\",\" \",dados!X3)","v":" "}]
[{"$f":"IF(dados!W4=\"\",\" \",dados!W4)","v":" "},null,null,null,{"$f":"IF(dados!X4=\"\",\" \",dados!X4)","v":" "}]
[{"$f":"IF(dados!W5=\"\",\" \",dados!W5)","v":" "},null,null,null,{"$f":"IF(dados!X5=\"\",\" \",dados!X5)","v":" "}]
[{"$f":"IF(dados!W6=\"\",\" \",dados!W6)","v":" "},null,null,null,{"$f":"IF(dados!X6=\"\",\" \",dados!X6)","v":" "}]
[{"$f":"IF(dados!W7=\"\",\" \",dados!W7)","v":" "},null,null,null,{"$f":"IF(dados!X7=\"\",\" \",dados!X7)","v":" "}]
[{"$f":"IF(dados!W8=\"\",\" \",dados!W8)","v":" "},null,null,null,{"$f":"IF(dados!X8=\"\",\" \",dados!X8)","v":" "}]
[{"$f":"IF(dados!W9=\"\",\" \",dados!W9)","v":" "},null,null,null,{"$f":"IF(dados!X9=\"\",\" \",dados!X9)","v":" "}]
[{"$f":"IF(dados!W10=\"\",\" \",dados!W10)","v":" "},null,null,null,{"$f":"IF(dados!X10=\"\",\" \",dados!X10)","v":" "}]
[{"$f":"IF(dados!W11=\"\",\" \",dados!W11)","v":" "},null,null,null,{"$f":"IF(dados!X11=\"\",\" \",dados!X11)","v":" "}]
[]
["c) Experiência em análise de projetos de editais, curadorias, concursos, comissões de seleção ou afins, nas Áreas Temáticas elencadas no item 2.1.",null,null,null,"d) Experiência na área de gestão de políticas culturais em instituições públicas ou privadas."]
[{"$f":"IF(dados!Y2=\"\",\" \",dados!Y2)","v":" "},null,null,null,{"$f":"IF(dados!Z2=\"\",\" \",dados!Z2)","v":" "}]
[{"$f":"IF(dados!Y3=\"\",\" \",dados!Y3)","v":" "},null,null,null,{"$f":"IF(dados!Z3=\"\",\" \",dados!Z3)","v":" "}]
[{"$f":"IF(dados!Y4=\"\",\" \",dados!Y4)","v":" "},null,null,null,{"$f":"IF(dados!Z4=\"\",\" \",dados!Z4)","v":" "}]
[{"$f":"IF(dados!Y5=\"\",\" \",dados!Y5)","v":" "},null,null,null,{"$f":"IF(dados!Z5=\"\",\" \",dados!Z5)","v":" "}]
[{"$f":"IF(dados!Y6=\"\",\" \",dados!Y6)","v":" "}]
[{"$f":"IF(dados!Y7=\"\",\" \",dados!Y7)","v":" "}]
[{"$f":"IF(dados!Y8=\"\",\" \",dados!Y8)","v":" "}]
[{"$f":"IF(dados!Y9=\"\",\" \",dados!Y9)","v":" "}]
[]
["Declaro, para os devidos fins, sob as penas da lei e das sanções previstas no Edital de Convocatória dos Grupos Temáticos de Assessoramento Técnico que as informações prestadas e documentos aqui apresentados são verdadeiros e autênticos.\n\nDeclaro, ainda, que não me encontro nos casos de impedimento e suspeição descritos no Edital Convocatória dos Grupos Temáticos de Assessoramento Técnico, bem como ciente do seu conteúdo.\n\nDeclaro, por fim, estar de acordo com todas as normas e diretrizes estabelecidas na Lei n° 16.113 de 05 de julho de 2017 e no Edital de Microprojeto Cultural 2019/2020."]
[]
[]
["Data ____/____/_________"]
[]
[]
["______________________________________________"]
["Assinatura"]

{"sheet":"dados","index":2,"n_rows":1,"n_cols":1,"rows_kept":1,"cut":false,"hidden":false,"merged":[]}
["nome do usuario"]

{"sheet":"lista_geral","index":3,"n_rows":8,"n_cols":9,"rows_kept":8,"cut":false,"hidden":false,"merged":[]}
["Gênero",null,"cor/raça/etnia",null,"sim/não",null,"Tipo de deficiência",null,"Formacao"]
["Feminino",null,"Amarela",null,"Sim",null,"Física",null,"Doutorado"]
["Intersexual",null,"Branca",null,"Não",null,"Auditiva",null,"Pós-doutorado"]
["Masculino",null,"Indígena",null,"Prefiro não informar",null,"Visual",null,"Mestrado "]
["Não Binário",null,"Parda",null,null,null,"Intelectual ",null,"Especialização "]
["Outro",null,"Preta",null,null,null,"Múltipla",null,"Superior na área específica "]
["Prefiro não informar",null,"Outra",null,null,null,null,null,"Superior em qualquer área"]
[null,null,"Prefiro não informar",null,null,null,null,null,"Nível Técnico "]

{"sheet":"conf","index":4,"n_rows":2,"n_cols":1,"rows_kept":2,"cut":false,"hidden":false,"merged":[]}
["pdf gerado"]
["não"]